Workbook

Sheet Tabulación
A2: Evaluación de Sostenibilidad Turística | B2: T.Absol | C2: T.Relat | D2: 1 | E2: =+D2+1 -> 2 | F2: =+E2+1 -> 3 | G2: 4 | H2: 5 | I2: 6 | J2: 7 | K2: 8 | L2: 9 | M2: 10 | N2: 11 | O2: 12 | P2: 13 | Q2: 14 | R2: 15 | S2: 16 | T2: 17 | U2: 18 | V2: 19 | W2: 20 | X2: 21 | Y2: 22 | Z2: =+Y2+1 -> 23 | AA2: =+Z2+1 -> 24 | AB2: =+AA2+1 -> 25 | AC2: =+AB2+1 -> 26 | AD2: =+AC2+1 -> 27 | AE2: =+AD2+1 -> 28 | AF2: =+AE2+1 -> 29 | AG2: =+AF2+1 -> 30 | AH2: =+AG2+1 -> 31 | AI2: =+AH2+1 -> 32 | AJ2: =+AI2+1 -> 33 | AK2: =+AJ2+1 -> 34 | AL2: =+AK2+1 -> 35 | AM2: =+AL2+1 -> 36 | AN2: =+AM2+1 -> 37 | AO2: =+AN2+1 -> 38 | AP2: =+AO2+1 -> 39 | AQ2: =+AP2+1 -> 40 | AR2: =+AQ2+1 -> 41 | AS2: =+AR2+1 -> 42 | AT2: =+AS2+1 -> 43 | AU2: =+AT2+1 -> 44 | AV2: =+AU2+1 -> 45 | AW2: =+AV2+1 -> 46 | AX2: =+AW2+1 -> 47 | AY2: =+AX2+1 -> 48 | AZ2: =+AY2+1 -> 49 | BA2: =+AZ2+1 -> 50 | BB2: =+BA2+1 -> 51 | BC2: =+BB2+1 -> 52 | BD2: =+BC2+1 -> 53 | BE2: 54 | BF2: 55 | BG2: 56 | BH2: 57 | BI2: 58 | BJ2: 59 | BK2: 60 | BL2: 61 | BM2: 62 | BN2: 63 | BO2: 64 | BP2: 65 | BQ2: 66 | BR2: 67 | BS2: 68 | BT2: 69 | BU2: 70 | BV2: 71 | BW2: 72 | BX2: 73 | BY2: 74 | BZ2: 75 | CA2: 76 | CB2: 77 | CC2: 78 | CD2: 79 | CE2: 80 | CF2: 81 | CG2: 82 | CH2: 83 | CI2: 84 | CJ2: 85 | CK2: 86 | CL2: 87 | CM2: 88 | CN2: =+CM2+1 -> 89 | CO2: =+CN2+1 -> 90 | CP2: =+CO2+1 -> 91 | CQ2: 92 | CR2: 93 | CS2: 94 | CT2: 95 | CU2: 96 | CV2: 97 | CW2: 98 | CX2: 99 | CY2: 100 | CZ2: 101 | DA2: 102 | DB2: 103 | DC2: 104 | DD2: 105 | DE2: 106 | DF2: 107 | DG2: 108 | DH2: 109 | DI2: 110 | DJ2: 111 | DK2: 112 | DL2: 113 | DM2: 114 | DN2: 115 | DO2: 116 | DP2: 117 | DQ2: 118 | DR2: 119 | DS2: 120 | DT2: 121 | DU2: 122 | DV2: 123 | DW2: 124 | DX2: =+DW2+1 -> 125 | DY2: =+DX2+1 -> 126 | DZ2: =+DY2+1 -> 127 | EA2: 128 | EB2: 129 | EC2: 130 | ED2: 131 | EE2: 132 | EF2: 133 | EG2: 134 | EH2: 135 | EI2: 136 | EJ2: 137 | EK2: 138 | EL2: 139 | EM2: 140 | EN2: 141 | EO2: 142 | EP2: 143 | EQ2: 144 | ER2: 145 | ES2: 146 | ET2: 147 | EU2: 148 | EV2: 149 | EW2: 150 | EX2: 151 | EY2: 152 | EZ2: 153 | FA2: 154 | FB2: 155 | FC2: 156 | FD2: 157 | FE2: 158 | FF2: 159 | FG2: 160 | FH2: 161 | FI2: 162 | FJ2: 163 | FK2: =+FJ2+1 -> 164 | FL2: =+FK2+1 -> 165 | FM2: =+FL2+1 -> 166 | FN2: =+FM2+1 -> 167 | FO2: =+FN2+1 -> 168 | FP2: =+FO2+1 -> 169 | FQ2: =+FP2+1 -> 170 | FR2: =+FQ2+1 -> 171 | FS2: =+FR2+1 -> 172 | FT2: =+FS2+1 -> 173 | FU2: =+FT2+1 -> 174 | FV2: =+FU2+1 -> 175 | FW2: =+FV2+1 -> 176 | FX2: =+FW2+1 -> 177 | FY2: =+FX2+1 -> 178 | FZ2: =+FY2+1 -> 179 | GA2: =+FZ2+1 -> 180 | GB2: =+GA2+1 -> 181 | GC2: =+GB2+1 -> 182 | GD2: =+GC2+1 -> 183 | GE2: =+GD2+1 -> 184 | GF2: =+GE2+1 -> 185 | GG2: =+GF2+1 -> 186 | GH2: =+GG2+1 -> 187 | GI2: =+GH2+1 -> 188 | GJ2: =+GI2+1 -> 189 | GK2: =+GJ2+1 -> 190 | GL2: =+GK2+1 -> 191 | GM2: =+GL2+1 -> 192 | GN2: =+GM2+1 -> 193 | GO2: =+GN2+1 -> 194 | GP2: =+GO2+1 -> 195 | GQ2: =+GP2+1 -> 196 | GR2: =+GQ2+1 -> 197 | GS2: =+GR2+1 -> 198 | GT2: =+GS2+1 -> 199 | GU2: =+GT2+1 -> 200 | GV2: =+GU2+1 -> 201 | GW2: =+GV2+1 -> 202 | GX2: =+GW2+1 -> 203 | GY2: =+GX2+1 -> 204 | GZ2: =+GY2+1 -> 205 | HA2: =+GZ2+1 -> 206 | HB2: =+HA2+1 -> 207 | HC2: =+HB2+1 -> 208 | HD2: =+HC2+1 -> 209 | HE2: =+HD2+1 -> 210 | HF2: =+HE2+1 -> 211 | HG2: =+HF2+1 -> 212 | HH2: =+HG2+1 -> 213 | HI2: =+HH2+1 -> 214 | HJ2: =+HI2+1 -> 215 | HK2: =+HJ2+1 -> 216 | HL2: =+HK2+1 -> 217 | HM2: =+HL2+1 -> 218 | HN2: =+HM2+1 -> 219 | HO2: =+HN2+1 -> 220 | HP2: =+HO2+1 -> 221 | HQ2: =+HP2+1 -> 222 | HR2: =+HQ2+1 -> 223 | HS2: =+HR2+1 -> 224 | HT2: =+HS2+1 -> 225 | HU2: =+HT2+1 -> 226 | HV2: =+HU2+1 -> 227 | HW2: =+HV2+1 -> 228 | HX2: =+HW2+1 -> 229 | HY2: =+HX2+1 -> 230 | HZ2: =+HY2+1 -> 231 | IA2: =+HZ2+1 -> 232 | IB2: =+IA2+1 -> 233 | IC2: =+IB2+1 -> 234 | ID2: =+IC2+1 -> 235 | IE2: =+ID2+1 -> 236 | IF2: =+IE2+1 -> 237 | IG2: =+IF2+1 -> 238 | IH2: =+IG2+1 -> 239 | II2: =+IH2+1 -> 240 | IJ2: =+II2+1 -> 241 | IK2: =+IJ2+1 -> 242 | IL2: =+IK2+1 -> 243 | IM2: =+IL2+1 -> 244 | IN2: =+IM2+1 -> 245 | IO2: =+IN2+1 -> 246 | IP2: =+IO2+1 -> 247 | IQ2: =+IP2+1 -> 248 | IR2: =+IQ2+1 -> 249 | IS2: =+IR2+1 -> 250 | IT2: =+IS2+1 -> 251 | IU2: =+IT2+1 -> 252 | IV2: =+IU2+1 -> 253 | IW2: =+IV2+1 -> 254 | IX2: =+IW2+1 -> 255 | IY2: =+IX2+1 -> 256 | IZ2: =+IY2+1 -> 257 | JA2: =+IZ2+1 -> 258 | JB2: =+JA2+1 -> 259 | JC2: =+JB2+1 -> 260 | JD2: =+JC2+1 -> 261 | JE2: =+JD2+1 -> 262 | JF2: =+JE2+1 -> 263 | JG2: =+JF2+1 -> 264 | JH2: =+JG2+1 -> 265 | JI2: =+JH2+1 -> 266 | JJ2: =+JI2+1 -> 267 | JK2: =+JJ2+1 -> 268 | JL2: =+JK2+1 -> 269 | JM2: =+JL2+1 -> 270 | JN2: =+JM2+1 -> 271 | JO2: =+JN2+1 -> 272 | JP2: =+JO2+1 -> 273 | JQ2: =+JP2+1 -> 274 | JR2: =+JQ2+1 -> 275 | JS2: =+JR2+1 -> 276 | JT2: =+JS2+1 -> 277 | JU2: =+JT2+1 -> 278 | JV2: =+JU2+1 -> 279 | JW2: =+JV2+1 -> 280 | JX2: =+JW2+1 -> 281 | JY2: =+JX2+1 -> 282 | JZ2: =+JY2+1 -> 283 | KA2: =+JZ2+1 -> 284 | KB2: =+KA2+1 -> 285 | KC2: =+KB2+1 -> 286 | KD2: =+KC2+1 -> 287 | KE2: =+KD2+1 -> 288 | KF2: =+KE2+1 -> 289 | KG2: =+KF2+1 -> 290 | KH2: =+KG2+1 -> 291 | KI2: =+KH2+1 -> 292 | KJ2: =+KI2+1 -> 293 | KK2: =+KJ2+1 -> 294 | KL2: =+KK2+1 -> 295 | KM2: =+KL2+1 -> 296 | KN2: =+KM2+1 -> 297 | KO2: =+KN2+1 -> 298 | KP2: =+KO2+1 -> 299 | KQ2: =+KP2+1 -> 300 | KR2: =+KQ2+1 -> 301 | KS2: =+KR2+1 -> 302 | KT2: =+KS2+1 -> 303 | KU2: =+KT2+1 -> 304 | KV2: =+KU2+1 -> 305 | KW2: =+KV2+1 -> 306 | KX2: =+KW2+1 -> 307 | KY2: =+KX2+1 -> 308 | KZ2: =+KY2+1 -> 309 | LA2: =+KZ2+1 -> 310 | LB2: =+LA2+1 -> 311 | LC2: =+LB2+1 -> 312 | LD2: =+LC2+1 -> 313 | LE2: =+LD2+1 -> 314 | LF2: =+LE2+1 -> 315 | LG2: =+LF2+1 -> 316 | LH2: =+LG2+1 -> 317 | LI2: =+LH2+1 -> 318 | LJ2: =+LI2+1 -> 319 | LK2: =+LJ2+1 -> 320 | LL2: =+LK2+1 -> 321 | LM2: =+LL2+1 -> 322 | LN2: =+LM2+1 -> 323 | LO2: =+LN2+1 -> 324 | LP2: =+LO2+1 -> 325 | LQ2: =+LP2+1 -> 326 | LR2: =+LQ2+1 -> 327 | LS2: =+LR2+1 -> 328 | LT2: =+LS2+1 -> 329 | LU2: =+LT2+1 -> 330 | LV2: =+LU2+1 -> 331 | LW2: =+LV2+1 -> 332 | LX2: =+LW2+1 -> 333 | LY2: =+LX2+1 -> 334 | LZ2: =+LY2+1 -> 335 | MA2: =+LZ2+1 -> 336 | MB2: =+MA2+1 -> 337 | MC2: =+MB2+1 -> 338 | MD2: =+MC2+1 -> 339 | ME2: =+MD2+1 -> 340 | MF2: =+ME2+1 -> 341 | MG2: =+MF2+1 -> 342 | MH2: =+MG2+1 -> 343 | MI2: =+MH2+1 -> 344 | MJ2: =+MI2+1 -> 345 | MK2: =+MJ2+1 -> 346 | ML2: =+MK2+1 -> 347
A5: 1.1 El Hotel da muestra de una relación con la cultura regional? | B5: =SUM(D5:FJ5) -> 79 | C5: =+B5/$B$11 -> 0.1673728814 | D5: 3 | E5: 2 | F5: 3 | G5: 2 | H5: 4 | I5: 4 | J5: 4 | K5: 4 | L5: 4 | M5: 4 | N5: 4 | O5: 4 | P5: 4 | Q5: 4 | R5: 4 | S5: 4 | T5: 3 | U5: 4 | V5: 4 | W5: 5 | X5: 5
A6: 1.2 El hotel insta a los huéspedes a visitar áreas protegidas de la zona? | B6: =SUM(D6:FJ6) -> 77 | C6: 0.1631355932 | D6: 2 | E6: 2 | F6: 2 | G6: 2 | H6: 4 | I6: 4 | J6: 4 | K6: 4 | L6: 4 | M6: 4 | N6: 4 | O6: 4 | P6: 4 | Q6: 4 | R6: 4 | S6: 4 | T6: 4 | U6: 4 | V6: 4 | W6: 4 | X6: 5
A7: 1.3 Idetifica en el hotel productos basados en criterios ecológicos y sociales? | B7: =SUM(D7:FJ7) -> 81 | C7: 0.1716101695 | D7: 3 | E7: 2 | F7: 3 | G7: 2 | H7: 4 | I7: 4 | J7: 4 | K7: 4 | L7: 4 | M7: 4 | N7: 4 | O7: 4 | P7: 4 | Q7: 4 | R7: 4 | S7: 4 | T7: 4 | U7: 4 | V7: 6 | W7: 4 | X7: 5
A8: 1.4 El hotel aplica encuestas regulares para medir su satisfacción como cliente. | B8: =SUM(D8:FJ8) -> 79 | C8: 0.1673728814 | D8: 3 | E8: 2 | F8: 3 | G8: 2 | H8: 4 | I8: 4 | J8: 4 | K8: 4 | L8: 4 | M8: 4 | N8: 4 | O8: 4 | P8: 4 | Q8: 4 | R8: 4 | S8: 4 | T8: 4 | U8: 4 | V8: 4 | W8: 4 | X8: 5
A9: 1.5 El hospedaje cuenta con alguna condecoración, distinción o certificación referente a sostenibilidad?. | B9: =SUM(D9:FJ9) -> 77 | C9: 0.1631355932 | D9: 3 | E9: 2 | F9: 2 | G9: 2 | H9: 4 | I9: 4 | J9: 4 | K9: 4 | L9: 4 | M9: 4 | N9: 4 | O9: 4 | P9: 4 | Q9: 4 | R9: 4 | S9: 4 | T9: 4 | U9: 4 | V9: 4 | W9: 3 | X9: 5
A10: 1.6 La ubicación del hotel e infraestructura es sostenible? | B10: =SUM(D10:FJ10) -> 79 | C10: 0.1673728814 | D10: 3 | E10: 2 | F10: 3 | G10: 2 | H10: 4 | I10: 4 | J10: 4 | K10: 4 | L10: 4 | M10: 4 | N10: 4 | O10: 4 | P10: 4 | Q10: 4 | R10: 4 | S10: 4 | T10: 4 | U10: 4 | V10: 4 | W10: 4 | X10: 5
B11: =SUM(B5:B10) -> 472 | C11: =SUM(C5:C10) -> 1
A12: 2.1 En el restaurante encontraron comida típica? | B12: =SUM(D12:FJ12) -> 60 | C12: =+B12/$B$19 -> 0.2083333333 | D12: 4 | E12: 3 | F12: 3 | G12: 2 | H12: 4 | I12: 1 | J12: 1 | K12: 2 | L12: 2 | M12: 4 | N12: 2 | O12: 3 | P12: 4 | Q12: 4 | R12: 4 | S12: 4 | T12: 3 | U12: 3 | V12: 3 | W12: 4
A13: 2.2 El hotel cuenta con basureros para la clasificación de la basura? | B13: 69 | C13: 0.2395833333 | D13: 1 | E13: 3 | F13: 1 | G13: 2 | H13: 4 | I13: 4 | J13: 4 | K13: 4 | L13: 3 | M13: 4 | N13: 3 | O13: 4 | P13: 4 | Q13: 4 | R13: 4 | S13: 4 | T13: 4 | U13: 4 | V13: 4 | W13: 4
A14: 2.3 El hotel informa las medidas de seguridad y ecología en la zona? | B14: 71 | C14: 0.2465277778 | D14: 2 | E14: 2 | F14: 2 | G14: 2 | H14: 4 | I14: 4 | J14: 4 | K14: 4 | L14: 4 | M14: 4 | N14: 4 | O14: 4 | P14: 4 | Q14: 4 | R14: 4 | S14: 4 | T14: 4 | U14: 4 | V14: 3 | W14: 4
A15: 2.4 El hotel le insta a tratar de ahorrar agua? | B15: 75 | C15: 0.2604166667 | D15: 4 | E15: 2 | F15: 2 | G15: 3 | H15: 4 | I15: 4 | J15: 4 | K15: 4 | L15: 4 | M15: 4 | N15: 4 | O15: 4 | P15: 4 | Q15: 4 | R15: 4 | S15: 4 | T15: 4 | U15: 4 | V15: 4 | W15: 4
A16: 2.5 El hotel le insta a tratar a ahorrar energía eléctrica ? | B16: 72 | C16: 0.25 | D16: 3 | E16: 2 | F16: 2 | G16: 2 | H16: 4 | I16: 4 | J16: 4 | K16: 4 | L16: 4 | M16: 4 | N16: 4 | O16: 4 | P16: 4 | Q16: 4 | R16: 4 | S16: 4 | T16: 4 | U16: 4 | V16: 4 | W16: 3
A17: 2.6 El hotel cuenta con equipo sostenible y eficiente en las instalaciones? | B17: 70 | C17: 0.2430555556 | D17: 3 | E17: 2 | F17: 2 | G17: 2 | H17: 4 | I17: 4 | J17: 4 | K17: 4 | L17: 4 | M17: 4 | N17: 4 | O17: 4 | P17: 4 | Q17: 4 | R17: 4 | S17: 4 | T17: 4 | U17: 3 | V17: 3 | W17: 3
A18: 2.8 El jardín tiene plantas nativas y con sus respectivos nombres? | B18: 71 | C18: 0.2465277778 | D18: 3 | E18: 3 | F18: 2 | G18: 3 | H18: 4 | I18: 4 | J18: 3 | K18: 4 | L18: 3 | M18: 4 | N18: 3 | O18: 4 | P18: 4 | Q18: 4 | R18: 4 | S18: 4 | T18: 4 | U18: 3 | V18: 4 | W18: 4
B19: =SUM(B15:B18) -> 288 | C19: =SUM(C15:C18) -> 1
A20: 3.1 El hotel rechaza plenamente el trabajo infantil bajo explotación? | B20: =SUM(D20:FJ20) -> 80 | C20: =+B20/$B$24 -> 0.251572327 | D20: 4 | E20: 4 | F20: 4 | G20: 4 | H20: 4 | I20: 4 | J20: 4 | K20: 4 | L20: 4 | M20: 4 | N20: 4 | O20: 4 | P20: 4 | Q20: 4 | R20: 4 | S20: 4 | T20: 4 | U20: 4 | V20: 4 | W20: 4
A21: 3.2 El hotel prohibe la prostitución dentro de las instalaciones? | B21: =SUM(D21:FJ21) -> 79 | C21: =+B21/$B$24 -> 0.248427673 | D21: 4 | E21: 4 | F21: 4 | G21: 4 | H21: 4 | I21: 4 | J21: 4 | K21: 4 | L21: 4 | M21: 4 | N21: 4 | O21: 4 | P21: 4 | Q21: 4 | R21: 4 | S21: 4 | T21: 4 | U21: 3 | V21: 4 | W21: 4
A22: 3.3 El hotel rechaza y previene la explotación sexual infantil? | B22: =SUM(D22:FJ22) -> 79 | C22: 0.248427673 | D22: 4 | E22: 4 | F22: 4 | G22: 4 | H22: 4 | I22: 4 | J22: 4 | K22: 4 | L22: 4 | M22: 4 | N22: 4 | O22: 4 | P22: 4 | Q22: 4 | R22: 4 | S22: 4 | T22: 4 | U22: 4 | V22: 4 | W22: 3
A23: 3.4 El hotel prohibe la venta de narcóticos y estupefacientes en las instalaciones? | B23: =SUM(D23:FJ23) -> 80 | C23: 0.251572327 | D23: 4 | E23: 4 | F23: 4 | G23: 4 | H23: 4 | I23: 4 | J23: 4 | K23: 4 | L23: 4 | M23: 4 | N23: 4 | O23: 4 | P23: 4 | Q23: 4 | R23: 4 | S23: 4 | T23: 4 | U23: 4 | V23: 4 | W23: 4
B24: =SUM(B20:B23) -> 318 | C24: =SUM(C20:C23) -> 1
A25: 4.1 Considera usted como cliente que el hotel es un beneficio para la comunidad? | B25: =SUM(D25:FJ25) -> 77 | C25: =+B25/$B$28 -> 0.3989637306 | D25: 4 | E25: 3 | F25: 3 | G25: 4 | H25: 4 | I25: 4 | J25: 4 | K25: 4 | L25: 4 | M25: 4 | N25: 4 | O25: 4 | P25: 4 | Q25: 4 | R25: 4 | S25: 3 | T25: 4 | U25: 4 | V25: 4 | W25: 4
A26: 4.2 El hotel prefiere a los productores locales? | B26: 68 | C26: =+B26/$B$28 -> 0.3523316062 | D26: 2 | E26: 2 | F26: 1 | G26: 3 | H26: 4 | I26: 4 | J26: 4 | K26: 4 | L26: 4 | M26: 4 | N26: 3 | O26: 4 | P26: 4 | Q26: 4 | R26: 4 | S26: 4 | T26: 4 | U26: 3 | V26: 3 | W26: 3
A27: 4.3 El hotele tiene un espacio para mencionar actividades de la comunidad? | B27: 48 | C27: =+B27/$B$28 -> 0.2487046632 | D27: 2 | E27: 2 | F27: 2 | G27: 2 | H27: 4 | I27: 2 | J27: 1 | K27: 1 | L27: 2 | M27: 2 | N27: 1 | O27: 2 | P27: 3 | Q27: 4 | R27: 3 | S27: 3 | T27: 2 | U27: 3 | V27: 3 | W27: 4
B28: =SUM(B25:B27) -> 193 | C28: =SUM(C25:C27) -> 1 | D28: =SUM(D5:D27) -> 61 | E28: =SUM(E5:E27) -> 52 | F28: =SUM(F5:F27) -> 52 | G28: 53 | H28: 80 | I28: 75 | J28: 73 | K28: 75 | L28: 74 | M28: 78 | N28: 72 | O28: 77 | P28: 79 | Q28: 80 | R28: 79 | S28: 78 | T28: 76 | U28: 74 | V28: 77 | W28: 76 | X28: 30 | Y28: 0 | Z28: 0 | AA28: 0 | AB28: 0
D29: =D28*100/80 -> 76.25 | E29: =E28*100/80 -> 65 | F29: =F28*100/80 -> 65 | G29: 66.25 | H29: 100 | I29: 93.75 | J29: 91.25 | K29: 93.75 | L29: 92.5 | M29: 97.5 | N29: 90 | O29: 96.25 | P29: 98.75 | Q29: 100 | R29: 98.75 | S29: 97.5 | T29: 95 | U29: 92.5 | V29: 96.25 | W29: 95 | X29: 37.5 | Y29: 0 | Z29: 0 | AA29: 0 | AB29: 0

Sheet Análisis
B1: Fecha: | C1: Fecha: | D1: Fecha: | E1: Fecha: | F1: Fecha: | G1: 2018-02-20 | H1: Fecha: | I1: 2018-03-06 | J1: Fecha:
A2: Pregunta | F2: Nota | H2: Nota | J2: Nota
A3: =Tabulación!A5 -> 1.1 El Hotel da muestra de una relación con la cultura regional? | B3: 5 | C3: =COUNTIF(Tabulación!D5:XFD5,">0") -> 21 | D3: =IF(B3>0,C3*B3,0) -> 105 | E3: =Tabulación!B5 -> 79 | F3: =E3/D3 -> 0.7523809524 | H3: 0.5 | I3: Promever mas lo cultural | J3: 0.7523809524 | K3: Promever mas lo cultural
A4: =Tabulación!A6 -> 1.2 El hotel insta a los huéspedes a visitar áreas protegidas de la zona? | B4: 5 | C4: =COUNTIF(Tabulación!D6:XFD6,">0") -> 21 | D4: =IF(B4>0,C4*B4,0) -> 105 | E4: =Tabulación!B6 -> 77 | F4: =E4/D4 -> 0.7333333333 | H4: 0.7333333333 | J4: 0.7333333333
A5: =Tabulación!A7 -> 1.3 Idetifica en el hotel productos basados en criterios ecológicos y sociales? | B5: 5 | C5: =COUNTIF(Tabulación!D7:XFD7,">0") -> 21 | D5: 105 | E5: =Tabulación!B7 -> 81 | F5: 0.7714285714 | H5: 0.7714285714 | J5: 0.7714285714
A6: =Tabulación!A8 -> 1.4 El hotel aplica encuestas regulares para medir su satisfacción como cliente. | B6: 5 | C6: =COUNTIF(Tabulación!D8:XFD8,">0") -> 21 | D6: 105 | E6: =Tabulación!B8 -> 79 | F6: 0.7523809524 | H6: 0.7523809524 | J6: 0.7523809524
A7: =Tabulación!A9 -> 1.5 El hospedaje cuenta con alguna condecoración, distinción o certificación referente a sostenibilidad?. | B7: 5 | C7: =COUNTIF(Tabulación!D9:XFD9,">0") -> 21 | D7: 105 | E7: =Tabulación!B9 -> 77 | F7: 0.7333333333 | H7: 0.7333333333 | J7: 0.7333333333
A8: =Tabulación!A10 -> 1.6 La ubicación del hotel e infraestructura es sostenible? | B8: 5 | C8: =COUNTIF(Tabulación!D10:XFD10,">0") -> 21 | D8: 105 | E8: =Tabulación!B10 -> 79 | F8: 0.7523809524 | H8: 0.7523809524 | J8: 0.7523809524
A9: =Tabulación!A11 -> 0
A10: =Tabulación!A12 -> 2.1 En el restaurante encontraron comida típica? | B10: 5 | C10: =COUNTIF(Tabulación!D12:XFD12,">0") -> 20 | D10: 100 | E10: =Tabulación!B12 -> 60 | F10: 0.6 | H10: 0.6 | J10: 0.6
A11: =Tabulación!A13 -> 2.2 El hotel cuenta con basureros para la clasificación de la basura? | B11: 5 | C11: =COUNTIF(Tabulación!D13:XFD13,">0") -> 20 | D11: 100 | E11: =Tabulación!B13 -> 69 | F11: 0.69 | G11: Rotular Basureros | H11: 0.69 | J11: 0.69
A12: =Tabulación!A14 -> 2.3 El hotel informa las medidas de seguridad y ecología en la zona? | B12: 5 | C12: =COUNTIF(Tabulación!D14:XFD14,">0") -> 20 | D12: 100 | E12: =Tabulación!B14 -> 71 | F12: 0.71 | H12: 0.71 | J12: 0.71
A13: =Tabulación!A15 -> 2.4 El hotel le insta a tratar de ahorrar agua? | B13: 5 | C13: =COUNTIF(Tabulación!D15:XFD15,">0") -> 20 | D13: 100 | E13: =Tabulación!B15 -> 75 | F13: 0.75 | H13: 0.75 | J13: 0.75
A14: =Tabulación!A16 -> 2.5 El hotel le insta a tratar a ahorrar energía eléctrica ? | B14: 5 | C14: =COUNTIF(Tabulación!D16:XFD16,">0") -> 20 | D14: 100 | E14: =Tabulación!B16 -> 72 | F14: 0.72 | H14: 0.72 | J14: 0.72
A15: =Tabulación!A17 -> 2.6 El hotel cuenta con equipo sostenible y eficiente en las instalaciones? | B15: 5 | C15: =COUNTIF(Tabulación!D17:XFD17,">0") -> 20 | D15: 100 | E15: =Tabulación!B17 -> 70 | F15: 0.7 | H15: 0.7 | J15: 0.7
A16: =Tabulación!A18 -> 2.8 El jardín tiene plantas nativas y con sus respectivos nombres? | B16: 5 | C16: =COUNTIF(Tabulación!D18:XFD18,">0") -> 20 | D16: 100 | E16: =Tabulación!B18 -> 71 | F16: 0.71 | H16: 0.71 | J16: 0.71
A17: =Tabulación!A19 -> 0
A18: =Tabulación!A20 -> 3.1 El hotel rechaza plenamente el trabajo infantil bajo explotación? | B18: 5 | C18: =COUNTIF(Tabulación!D20:XFD20,">0") -> 20 | D18: 100 | E18: =Tabulación!B20 -> 80 | F18: 0.8 | H18: 0.8 | J18: 0.8
A19: =Tabulación!A21 -> 3.2 El hotel prohibe la prostitución dentro de las instalaciones? | B19: 5 | C19: =COUNTIF(Tabulación!D21:XFD21,">0") -> 20 | D19: 100 | E19: =Tabulación!B21 -> 79 | F19: 0.79 | H19: 0.79 | J19: 0.79
A20: =Tabulación!A22 -> 3.3 El hotel rechaza y previene la explotación sexual infantil? | B20: 5 | C20: =COUNTIF(Tabulación!D22:XFD22,">0") -> 20 | D20: 100 | E20: =Tabulación!B22 -> 79 | F20: 0.79 | H20: 0.79 | J20: 0.79
A21: =Tabulación!A23 -> 3.4 El hotel prohibe la venta de narcóticos y estupefacientes en las instalaciones? | B21: 5 | C21: =COUNTIF(Tabulación!D23:XFD23,">0") -> 20 | D21: 100 | E21: =Tabulación!B23 -> 80 | F21: 0.8 | H21: 0.8 | J21: 0.8
A22: =Tabulación!A24 -> 0
A23: =Tabulación!A25 -> 4.1 Considera usted como cliente que el hotel es un beneficio para la comunidad? | B23: 5 | C23: =COUNTIF(Tabulación!D25:XFD25,">0") -> 20 | D23: 100 | E23: =Tabulación!B25 -> 77 | F23: 0.77 | H23: 0.77 | J23: 0.77
A24: =Tabulación!A26 -> 4.2 El hotel prefiere a los productores locales? | B24: 5 | C24: =COUNTIF(Tabulación!D26:XFD26,">0") -> 20 | D24: 100 | E24: =Tabulación!B26 -> 68 | F24: 0.68 | H24: 0.68 | J24: 0.68
A25: =Tabulación!A27 -> 4.3 El hotele tiene un espacio para mencionar actividades de la comunidad? | B25: 5 | C25: =COUNTIF(Tabulación!D27:XFD27,">0") -> 20 | D25: 100 | E25: =Tabulación!B27 -> 48 | F25: 0.48 | G25: Activar la piezarra mural | H25: 0.48 | J25: 0.48
C144: =COUNTIF(Tabulación!D146:XFD146,">0") -> 0
C145: =COUNTIF(Tabulación!D147:XFD147,">0") -> 0
C146: =COUNTIF(Tabulación!D148:XFD148,">0") -> 0
C147: =COUNTIF(Tabulación!D149:XFD149,">0") -> 0
C148: =COUNTIF(Tabulación!D150:XFD150,">0") -> 0
C149: =COUNTIF(Tabulación!D151:XFD151,">0") -> 0
C150: =COUNTIF(Tabulación!D152:XFD152,">0") -> 0
C151: =COUNTIF(Tabulación!D153:XFD153,">0") -> 0
C152: =COUNTIF(Tabulación!D154:XFD154,">0") -> 0
C153: =COUNTIF(Tabulación!D155:XFD155,">0") -> 0
C154: =COUNTIF(Tabulación!D156:XFD156,">0") -> 0
C155: =COUNTIF(Tabulación!D157:XFD157,">0") -> 0
C156: =COUNTIF(Tabulación!D158:XFD158,">0") -> 0
C157: =COUNTIF(Tabulación!D159:XFD159,">0") -> 0
C158: =COUNTIF(Tabulación!D160:XFD160,">0") -> 0
C159: =COUNTIF(Tabulación!D161:XFD161,">0") -> 0
C160: =COUNTIF(Tabulación!D162:XFD162,">0") -> 0
C161: =COUNTIF(Tabulación!D163:XFD163,">0") -> 0
C162: =COUNTIF(Tabulación!D164:XFD164,">0") -> 0
C163: =COUNTIF(Tabulación!D165:XFD165,">0") -> 0
C164: =COUNTIF(Tabulación!D166:XFD166,">0") -> 0
C165: =COUNTIF(Tabulación!D167:XFD167,">0") -> 0
C166: =COUNTIF(Tabulación!D168:XFD168,">0") -> 0
C167: =COUNTIF(Tabulación!D169:XFD169,">0") -> 0
C168: =COUNTIF(Tabulación!D170:XFD170,">0") -> 0
C169: =COUNTIF(Tabulación!D171:XFD171,">0") -> 0
C170: =COUNTIF(Tabulación!D172:XFD172,">0") -> 0
C171: =COUNTIF(Tabulación!D173:XFD173,">0") -> 0
C172: =COUNTIF(Tabulación!D174:XFD174,">0") -> 0
C173: =COUNTIF(Tabulación!D175:XFD175,">0") -> 0
C174: =COUNTIF(Tabulación!D176:XFD176,">0") -> 0
C175: =COUNTIF(Tabulación!D177:XFD177,">0") -> 0
C176: =COUNTIF(Tabulación!D178:XFD178,">0") -> 0
C177: =COUNTIF(Tabulación!D179:XFD179,">0") -> 0
C178: =COUNTIF(Tabulación!D180:XFD180,">0") -> 0
C179: =COUNTIF(Tabulación!D181:XFD181,">0") -> 0
C180: =COUNTIF(Tabulación!D182:XFD182,">0") -> 0
C181: =COUNTIF(Tabulación!D183:XFD183,">0") -> 0
